[Event "RUS-ch Women Blitz 2019"]
[Site "Sochi"]
[Date "2019.10.17"]
[Round "10.9"]
[White "Yakimova, Mariya"]
[Black "Chernyak, Viktoria"]
[Result "1/2-1/2"]
[ECO "E06"]
[WhiteElo "2276"]
[BlackElo "2284"]
[Annotator "NA"]
[PlyCount "115"]
[EventDate "2019.10.17"]
[EventType "swiss"]
[EventCountry "RUS"]
[SourceTitle "playchess.com"]
[Source "ChessBase"]
[SourceQuality "1"]
[TimeControl "180+2"]

1. d4 {[%emt 0:00:00]} d5 {[%emt 0:00:00]} 2. Nf3 {[%emt 0:00:00]} Nf6 {[%emt 0:00:00]} 3. c4 {[%emt 0:00:01]} e6 {[%emt 0:00:02]} 4. g3 {[%emt 0:00:01]} Be7 {[%emt 0:00:03]} 5. Bg2 {[%emt 0:00:00]} O-O {[%emt 0:00:01]} 6. O-O {[%emt 0:00:02]} dxc4 {[%emt 0:00:04]} 7. Ne5 {[%emt 0:00:00]} Nc6 {[%emt 0:00:15]} 8. Nxc6 {[%emt 0:00:02]} bxc6 {[%emt 0:00:01]} 9. e3 {[%emt 0:00:00]} Rb8 {[%emt 0:00:06]} 10. Qa4 {[%emt 0:00:01]} c5 {[%emt 0:00:07]} 11. Rd1 {[%emt 0:00:01]} c6 {[%emt 0:00:44]} 12. dxc5 {[%emt 0:00:13]} Qc7 {[%emt 0:00:01]} 13. Qxc4 {[%emt 0:00:05]} Rb5 {[%emt 0:00:06]} 14. b4 {[%emt 0:00:12]} a5 {[%emt 0:00:03]} 15. a3 {[%emt 0:00:09]} e5 {[%emt 0:00:03]} 16. Nc3 {[%emt 0:00:04]} Rb8 {[%emt 0:00:05]} 17. Rb1 {[%emt 0:00:25]} Be6 {[%emt 0:00:02]} 18. Qa6 {[%emt 0:00:04]} axb4 {[%emt 0:00:10]} 19. axb4 {[%emt 0:00:03]} Rfc8 {[%emt 0:00:02]} 20. Bd2 {[%emt 0:00:14]} h5 {[%emt 0:00:04]} 21. Ne4 {[%emt 0:00:12]} Nd5 {[%emt 0:00:07]} 22. Be1 {[%emt 0:00:06]} f5 {[%emt 0:00:09]} 23. Nd6 {[%emt 0:00:01]} Bxd6 {[%emt 0:00:04]} 24. cxd6 {[%emt 0:00:02]} Qxd6 {[%emt 0:00:02]} 25. Qe2 {[%emt 0:00:24]} Bf7 {[%emt 0:00:13]} 26. e4 {[%emt 0:00:05]} fxe4 {[%emt 0:00:01]} 27. Bxe4 {[%emt 0:00:07]} Qf6 {[%emt 0:00:13]} 28. b5 {[%emt 0:00:04]} Ne7 {[%emt 0:00:17]} 29. b6 {[%emt 0:00:05]} h4 {[%emt 0:00:09]} 30. Ba5 {[%emt 0:00:07]} Nd5 {[%emt 0:00:05]} 31. b7 {[%emt 0:00:10]} Re8 {[%emt 0:00:07]} 32. Bxd5 {[%emt 0:00:02]} Bxd5 {[%emt 0:00:02]} 33. Bc7 {[%emt 0:00:09]} Bf3 {[%emt 0:00:01]} 34. Qa6 {[%emt 0:00:10]} Bxd1 {[%emt 0:00:03]} 35. Rxd1 {[%emt 0:00:15]} Qf3 {[%emt 0:00:05]} 36. Rb1 {[%emt 0:00:11]} h3 {[%emt 0:00:12]} 37. Qc4+ {[%emt 0:00:01]} Kh7 {[%emt 0:00:12]} 38. Qh4+ {[%emt 0:00:01]} Kg8 {[%emt 0:00:01]} 39. Qxh3 {[%emt 0:00:02]} Qd3 {[%emt 0:00:03]} 40. Qf1 {[%emt 0:00:06]} Qd5 {[%emt 0:00:05]} 41. Bxb8 {[%emt 0:00:03]} Rxb8 {[%emt 0:00:01]} 42. Qa6 {[%emt 0:00:02]} c5 {[%emt 0:00:02]} 43. Qa7 {[%emt 0:00:08]} Qd6 {[%emt 0:00:01]} 44. Rb6 {[%emt 0:00:09]} Qd1+ {[%emt 0:00:01]} 45. Kg2 {[%emt 0:00:01]} Qd5+ {[%emt 0:00:01]} 46. Kh3 {[%emt 0:00:04]} Qd7+ {[%emt 0:00:07]} 47. g4 {[%emt 0:00:02]} Qd3+ {[%emt 0:00:02]} 48. Kh4 {[%emt 0:00:03]} Qh7+ {[%emt 0:00:01]} 49. Kg3 {[%emt 0:00:01]} Qd3+ {[%emt 0:00:01]} 50. f3 {[%emt 0:00:01]} Rf8 {[%emt 0:00:04]} 51. b8=Q {[%emt 0:00:04]} Qxf3+ {[%emt 0:00:01]} 52. Kh4 {[%emt 0:00:00]} Qf2+ {[%emt 0:00:02]} 53. Kh3 {[%emt 0:00:03]} Qf3+ {[%emt 0:00:01]} 54. Kh4 {[%emt 0:00:01]} Qf2+ {[%emt 0:00:01]} 55. Kg5 {[%emt 0:00:06]} Qf4+ {[%emt 0:00:02]} 56. Kh5 {[%emt 0:00:02]} Qxh2+ {[%emt 0:00:01]} 57. Kg5 {[%emt 0:00:01]} Qf4+ {[%emt 0:00:02]} 58. Kh4 1/2-1/2

[Event "RUS-ch Women Blitz 2019"]
[Site "Sochi"]
[Date "2019.10.17"]
[Round "10.10"]
[White "Murashova, Ekaterina"]
[Black "Koroleva, Evgeniya"]
[Result "1/2-1/2"]
[ECO "B40"]
[WhiteElo "2248"]
[BlackElo "1855"]
[Annotator "NA"]
[PlyCount "74"]
[EventDate "2019.10.17"]
[EventType "swiss"]
[EventCountry "RUS"]
[SourceTitle "playchess.com"]
[Source "ChessBase"]
[SourceQuality "1"]
[TimeControl "180+2"]

1. e4 {[%emt 0:00:00]} c5 {[%emt 0:00:00]} 2. Nf3 e6 3. d4 {[%emt 0:00:00]} cxd4 {[%emt 0:00:00]} 4. Nxd4 {[%emt 0:00:01]} Nf6 {[%emt 0:00:00]} 5. Nc3 {[%emt 0:00:01]} Nc6 {[%emt 0:00:01]} 6. Ndb5 {[%emt 0:00:03]} Bb4 {[%emt 0:00:01]} 7. a3 {[%emt 0:00:02]} Bxc3+ {[%emt 0:00:01]} 8. Nxc3 {[%emt 0:00:01]} d5 {[%emt 0:00:01]} 9. Bd3 {[%emt 0:00:01]} d4 {[%emt 0:00:01]} 10. Ne2 {[%emt 0:00:01]} e5 {[%emt 0:00:01]} 11. O-O {[%emt 0:00:03]} O-O {[%emt 0:00:01]} 12. h3 {[%emt 0:00:04]} Qd6 {[%emt 0:00:10]} 13. f4 {[%emt 0:00:48]} exf4 {[%emt 0:00:01]} 14. Bxf4 {[%emt 0:00:02]} Qc5 {[%emt 0:00:45]} 15. Ng3 {[%emt 0:00:12]} Re8 {[%emt 0:00:05]} 16. b4 {[%emt 0:00:13]} Qb6 {[%emt 0:00:05]} 17. Bg5 {[%emt 0:00:37]} Nd7 {[%emt 0:00:07]} 18. Qh5 {[%emt 0:00:09]} Nce5 {[%emt 0:00:11]} 19. Bf4 {[%emt 0:00:07]} Nf6 {[%emt 0:00:06]} 20. Qe2 {[%emt 0:00:09]} Ng6 {[%emt 0:00:07]} 21. Bg5 {[%emt 0:00:02]} Nd7 {[%emt 0:00:07]} 22. Nf5 {[%emt 0:00:04]} Nde5 {[%emt 0:00:02]} 23. Kh1 {[%emt 0:00:05]} Nxd3 {[%emt 0:00:14]} 24. Qxd3 {[%emt 0:00:07]} Bxf5 {[%emt 0:00:01]} 25. exf5 {[%emt 0:00:08]} Ne5 {[%emt 0:00:01]} 26. Qg3 {[%emt 0:00:06]} f6 {[%emt 0:00:06]} 27. Bh6 {[%emt 0:00:03]} Re7 {[%emt 0:00:03]} 28. Rae1 {[%emt 0:00:01]} Qc7 {[%emt 0:00:14]} 29. Bf4 {[%emt 0:00:15]} Rae8 {[%emt 0:00:02]} 30. Re2 {[%emt 0:00:03]} Qd7 {[%emt 0:00:10]} 31. Bh6 {[%emt 0:00:18]} Kh8 {[%emt 0:00:07]} 32. Bc1 {[%emt 0:00:01]} a6 33. Bb2 {[%emt 0:00:01]} Nc6 {[%emt 0:00:23]} 34. Rxe7 {[%emt 0:00:01]} Rxe7 {[%emt 0:00:04]} 35. Rd1 {[%emt 0:00:04]} Qxf5 {[%emt 0:00:07]} 36. Qd6 {[%emt 0:00:01]} Qd7 {[%emt 0:00:12]} 37. Qf4 {[%emt 0:00:05]} Qc7 {[%emt 0:00:16]} 1/2-1/2

[Event "RUS-ch Women Blitz 2019"]
[Site "Sochi"]
[Date "2019.10.17"]
[Round "10.11"]
[White "Borisova, Ekaterina"]
[Black "Vasilevich, Tatjana"]
[Result "1-0"]
[ECO "A58"]
[WhiteElo "2347"]
[BlackElo "2360"]
[Annotator "NA"]
[PlyCount "90"]
[EventDate "2019.10.17"]
[EventType "swiss"]
[EventCountry "RUS"]
[SourceTitle "playchess.com"]
[Source "ChessBase"]
[SourceQuality "1"]
[TimeControl "180+2"]

1. d4 {[%emt 0:00:00]} Nf6 {[%emt 0:00:00]} 2. c4 {[%emt 0:00:00]} c5 {[%emt 0:00:02]} 3. d5 {[%emt 0:00:00]} b5 {[%emt 0:00:01]} 4. cxb5 {[%emt 0:00:01]} a6 {[%emt 0:00:01]} 5. bxa6 {[%emt 0:00:01]} d6 {[%emt 0:00:01]} 6. Nc3 {[%emt 0:00:02]} Bxa6 {[%emt 0:00:01]} 7. g3 {[%emt 0:00:01]} g6 {[%emt 0:00:01]} 8. Bg2 {[%emt 0:00:01]} Bg7 {[%emt 0:00:01]} 9. Nf3 {[%emt 0:00:01]} O-O {[%emt 0:00:04]} 10. O-O {[%emt 0:00:01]} Nbd7 {[%emt 0:00:07]} 11. Rb1 {[%emt 0:00:01]} Qa5 {[%emt 0:00:14]} 12. Bd2 {[%emt 0:00:01]} Rfb8 {[%emt 0:00:02]} 13. Qc2 {[%emt 0:00:03]} Qc7 {[%emt 0:00:29]} 14. b3 {[%emt 0:00:08]} Ng4 {[%emt 0:00:14]} 15. a4 {[%emt 0:00:12]} Nge5 {[%emt 0:00:06]} 16. Nxe5 {[%emt 0:00:14]} Nxe5 {[%emt 0:00:01]} 17. h3 {[%emt 0:00:12]} Rb7 {[%emt 0:00:04]} 18. Rb2 {[%emt 0:00:28]} Rab8 {[%emt 0:00:11]} 19. Rfb1 {[%emt 0:00:02]} Nd7 {[%emt 0:00:24]} 20. Bf1 {[%emt 0:00:06]} Ne5 {[%emt 0:00:03]} 21. f4 {[%emt 0:00:09]} Nd7 {[%emt 0:00:02]} 22. e3 {[%emt 0:00:07]} Bxf1 {[%emt 0:00:10]} 23. Kxf1 {[%emt 0:00:08]} Nb6 {[%emt 0:00:06]} 24. e4 {[%emt 0:00:24]} Qd7 {[%emt 0:00:10]} 25. Kg2 {[%emt 0:00:03]} e6 {[%emt 0:00:02]} 26. dxe6 {[%emt 0:00:10]} Qxe6 {[%emt 0:00:01]} 27. a5 {[%emt 0:00:18]} Nd7 {[%emt 0:00:05]} 28. Nd5 {[%emt 0:00:08]} Bxb2 {[%emt 0:00:05]} 29. Rxb2 {[%emt 0:00:02]} Nf6 {[%emt 0:00:07]} 30. Nxf6+ {[%emt 0:00:03]} Qxf6 {[%emt 0:00:01]} 31. Bc3 {[%emt 0:00:03]} Qe6 {[%emt 0:00:02]} 32. a6 {[%emt 0:00:04]} Ra7 {[%emt 0:00:02]} 33. f5 {[%emt 0:00:12]} gxf5 {[%emt 0:00:18]} 34. exf5 {[%emt 0:00:11]} Qh6 {[%emt 0:00:18]} 35. Qd3 {[%emt 0:00:10]} Re8 {[%emt 0:00:07]} 36. Re2 {[%emt 0:00:05]} Rae7 {[%emt 0:00:09]} 37. Rxe7 Rxe7 38. Bd2 {[%emt 0:00:13]} Qf6 {[%emt 0:00:08]} 39. Bc3 {[%emt 0:00:05]} Qh6 {[%emt 0:00:02]} 40. Bd2 {[%emt 0:00:01]} Qf6 {[%emt 0:00:08]} 41. Bc3 {[%emt 0:00:00]} Qg5 {[%emt 0:00:03]} 42. Bd2 {[%emt 0:00:03]} Qh5 {[%emt 0:00:06]} 43. Bf4 {[%emt 0:00:07]} Re2+ {[%emt 0:00:03]} 44. Kf1 {[%emt 0:00:02]} Re7 {[%emt 0:00:03]} 45. h4 {[%emt 0:00:02]} Qg4 {[%emt 0:00:05]} 1-0

[Event "RUS-ch Women Blitz 2019"]
[Site "Sochi"]
[Date "2019.10.17"]
[Round "10.12"]
[White "Bykova, Anastasia"]
[Black "Serditykh, Olesya"]
[Result "1-0"]
[ECO "E06"]
[WhiteElo "2247"]
[BlackElo "1990"]
[Annotator "NA"]
[PlyCount "103"]
[EventDate "2019.10.17"]
[EventType "swiss"]
[EventCountry "RUS"]
[SourceTitle "playchess.com"]
[Source "ChessBase"]
[SourceQuality "1"]
[TimeControl "180+2"]

1. d4 {[%emt 0:00:00]} d5 {[%emt 0:00:00]} 2. c4 {[%emt 0:00:00]} e6 {[%emt 0:00:00]} 3. g3 {[%emt 0:00:00]} Nf6 {[%emt 0:00:01]} 4. Nf3 {[%emt 0:00:01]} Be7 {[%emt 0:00:02]} 5. Bg2 {[%emt 0:00:01]} O-O {[%emt 0:00:02]} 6. O-O {[%emt 0:00:01]} b6 {[%emt 0:00:01]} 7. Nc3 {[%emt 0:00:02]} Bb7 {[%emt 0:00:01]} 8. cxd5 {[%emt 0:00:01]} exd5 {[%emt 0:00:01]} 9. Ne5 {[%emt 0:00:01]} Na6 {[%emt 0:00:03]} 10. Qa4 {[%emt 0:00:03]} c5 {[%emt 0:00:02]} 11. Nc6 {[%emt 0:00:06]} Bxc6 {[%emt 0:00:18]} 12. Qxc6 {[%emt 0:00:02]} Nb4 {[%emt 0:00:01]} 13. Qa4 {[%emt 0:00:01]} cxd4 {[%emt 0:00:06]} 14. Nb5 {[%emt 0:00:15]} a6 {[%emt 0:00:13]} 15. Nxd4 {[%emt 0:00:03]} Bc5 {[%emt 0:00:45]} 16. Rd1 {[%emt 0:00:22]} b5 {[%emt 0:00:11]} 17. Qb3 {[%emt 0:00:01]} Qb6 {[%emt 0:00:03]} 18. e3 {[%emt 0:00:07]} Rfd8 {[%emt 0:00:15]} 19. a3 {[%emt 0:00:12]} Nc6 {[%emt 0:00:04]} 20. Nxc6 {[%emt 0:00:04]} Qxc6 {[%emt 0:00:02]} 21. Bd2 {[%emt 0:00:08]} Rd7 {[%emt 0:00:56]} 22. Rac1 {[%emt 0:00:02]} Qb6 {[%emt 0:00:09]} 23. Bc3 {[%emt 0:00:04]} Rad8 {[%emt 0:00:03]} 24. Bd4 {[%emt 0:00:03]} Bxd4 {[%emt 0:00:08]} 25. Rxd4 {[%emt 0:00:01]} h6 {[%emt 0:00:04]} 26. Rcd1 {[%emt 0:00:02]} Qc6 {[%emt 0:00:02]} 27. Qd3 {[%emt 0:00:09]} Qc7 {[%emt 0:00:05]} 28. Qf5 {[%emt 0:00:08]} Qc6 {[%emt 0:00:08]} 29. h4 {[%emt 0:00:02]} Qc7 {[%emt 0:00:05]} 30. Qd3 {[%emt 0:00:05]} Qc6 {[%emt 0:00:01]} 31. g4 {[%emt 0:00:03]} Qe6 {[%emt 0:00:06]} 32. g5 {[%emt 0:00:13]} hxg5 {[%emt 0:00:01]} 33. hxg5 {[%emt 0:00:01]} Ne4 {[%emt 0:00:00]} 34. Bxe4 {[%emt 0:00:21]} dxe4 {[%emt 0:00:03]} 35. Rxd7 {[%emt 0:00:01]} exd3 {[%emt 0:00:01]} 36. Rxd8+ {[%emt 0:00:01]} Kh7 {[%emt 0:00:01]} 37. R1xd3 {[%emt 0:00:11]} Qg4+ {[%emt 0:00:01]} 38. Kf1 {[%emt 0:00:01]} Qxg5 {[%emt 0:00:03]} 39. R3d4 {[%emt 0:00:05]} Qc5 {[%emt 0:00:05]} 40. Ke2 {[%emt 0:00:42]} Qc2+ {[%emt 0:00:01]} 41. Rd2 {[%emt 0:00:01]} Qc4+ {[%emt 0:00:01]} 42. Kd1 {[%emt 0:00:05]} Qf1+ {[%emt 0:00:04]} 43. Kc2 {[%emt 0:00:01]} Qc4+ {[%emt 0:00:01]} 44. Kb1 {[%emt 0:00:00]} Qe4+ {[%emt 0:00:01]} 45. Ka1 {[%emt 0:00:04]} Qh1+ {[%emt 0:00:03]} 46. Ka2 {[%emt 0:00:01]} Qe4 {[%emt 0:00:01]} 47. R8d4 {[%emt 0:00:04]} Qe6+ 48. Ka1 Qc6 {[%emt 0:00:05]} 49. Kb1 {[%emt 0:00:05]} Qg6+ {[%emt 0:00:02]} 50. Ka1 {[%emt 0:00:02]} Qg1+ {[%emt 0:00:01]} 51. Ka2 {[%emt 0:00:01]} Qg6 {[%emt 0:00:02]} 52. Rh4+ {[%emt 0:00:05]} 1-0

[Event "RUS-ch Women Blitz 2019"]
[Site "Sochi"]
[Date "2019.10.17"]
[Round "11.1"]
[White "Maltsevskaya, Aleksandra"]
[Black "Garifullina, Leya"]
[Result "1/2-1/2"]
[ECO "B90"]
[WhiteElo "2333"]
[BlackElo "2330"]
[Annotator "NA"]
[PlyCount "57"]
[EventDate "2019.10.17"]
[EventType "swiss"]
[EventCountry "RUS"]
[SourceTitle "playchess.com"]
[Source "ChessBase"]
[SourceQuality "1"]
[TimeControl "180+2"]

1. e4 {[%emt 0:00:00]} c5 {[%emt 0:00:00]} 2. Nf3 {[%emt 0:00:00]} d6 {[%emt 0:00:00]} 3. d4 {[%emt 0:00:02]} cxd4 {[%emt 0:00:01]} 4. Nxd4 {[%emt 0:00:01]} Nf6 {[%emt 0:00:01]} 5. Nc3 {[%emt 0:00:01]} a6 {[%emt 0:00:01]} 6. Qd3 {[%emt 0:00:05]} e5 {[%emt 0:00:22]} 7. Nf5 {[%emt 0:00:01]} Bxf5 {[%emt 0:00:27]} 8. exf5 {[%emt 0:00:02]} h6 {[%emt 0:00:03]} 9. Be3 {[%emt 0:00:26]} Nc6 {[%emt 0:00:32]} 10. O-O-O {[%emt 0:00:03]} Qa5 {[%emt 0:00:21]} 11. Kb1 {[%emt 0:00:04]} Rd8 {[%emt 0:00:05]} 12. Nd5 {[%emt 0:00:42]} Nxd5 {[%emt 0:00:04]} 13. Qxd5 {[%emt 0:00:00]} Qxd5 {[%emt 0:00:01]} 14. Rxd5 {[%emt 0:00:01]} Ne7 {[%emt 0:00:01]} 15. Rd2 {[%emt 0:00:07]} Nxf5 {[%emt 0:00:02]} 16. Bb6 {[%emt 0:00:00]} Rc8 {[%emt 0:00:02]} 17. Bd3 {[%emt 0:00:04]} Ne7 {[%emt 0:00:09]} 18. Be4 {[%emt 0:00:24]} Nc6 {[%emt 0:00:06]} 19. c3 {[%emt 0:00:11]} g6 {[%emt 0:00:02]} 20. g4 {[%emt 0:00:05]} Be7 {[%emt 0:00:14]} 21. Be3 {[%emt 0:00:01]} h5 {[%emt 0:00:03]} 22. g5 {[%emt 0:00:11]} Na5 {[%emt 0:00:08]} 23. Rd3 {[%emt 0:00:08]} O-O {[%emt 0:00:28]} 24. b3 {[%emt 0:00:05]} Nc6 {[%emt 0:00:05]} 25. Rhd1 {[%emt 0:00:02]} Kg7 {[%emt 0:00:04]} 26. Kb2 {[%emt 0:00:04]} Rh8 {[%emt 0:00:02]} 27. h4 {[%emt 0:00:07]} Rhd8 {[%emt 0:00:04]} 28. Bb6 {[%emt 0:00:01]} Re8 {[%emt 0:00:02]} 29. Be3 {[%emt 0:00:01]} 1/2-1/2

[Event "RUS-ch Women Blitz 2019"]
[Site "Sochi"]
[Date "2019.10.17"]
[Round "11.2"]
[White "Pogonina, Natalija"]
[Black "Bodnaruk, Anastasia"]
[Result "1/2-1/2"]
[ECO "A45"]
[WhiteElo "2479"]
[BlackElo "2419"]
[Annotator "ChessBase"]
[PlyCount "101"]
[EventDate "2019.10.17"]
[EventType "swiss"]
[EventCountry "RUS"]
[SourceTitle "playchess.com"]
[Source "ChessBase"]
[SourceQuality "1"]
[TimeControl "180+2"]

1. d4 {[%emt 0:00:00]} Nf6 {[%emt 0:00:00]} 2. g3 {[%emt 0:00:02]} g6 {[%emt 0:00:01]} 3. Bg2 {[%emt 0:00:02]} Bg7 {[%emt 0:00:01]} 4. e4 {[%emt 0:00:02]} d6 {[%emt 0:00:03]} 5. Nc3 {[%emt 0:00:03]} O-O {[%emt 0:00:02]} 6. Nge2 {[%emt 0:00:03]} e5 {[%emt 0:00:07]} 7. O-O {[%emt 0:00:06]} exd4 {[%emt 0:00:10]} 8. Nxd4 {[%emt 0:00:02]} Nc6 {[%emt 0:00:02]} 9. Nxc6 {[%emt 0:00:04]} bxc6 {[%emt 0:00:01]} 10. h3 {[%emt 0:00:07]} Rb8 {[%emt 0:00:04]} 11. Rb1 {[%emt 0:00:03]} Be6 {[%emt 0:00:09]} 12. Be3 {[%emt 0:00:05]} a5 {[%emt 0:00:07]} 13. b3 {[%emt 0:00:14]} c5 {[%emt 0:00:10]} 14. Ne2 {[%emt 0:00:09]} Bc8 {[%emt 0:00:15]} 15. e5 {[%emt 0:00:10]} Ne8 {[%emt 0:00:32]} 16. exd6 {[%emt 0:00:06]} cxd6 {[%emt 0:00:00]} 17. Bxc5 {[%emt 0:00:09]} Bxh3 {[%emt 0:00:06]} 18. Bxd6 {[%emt 0:00:19]} Nxd6 {[%emt 0:00:42]} 19. Bxh3 {[%emt 0:00:02]} Qb6 {[%emt 0:00:05]} 20. c4 {[%emt 0:00:08]} Rfe8 {[%emt 0:00:06]} 21. Qc2 {[%emt 0:00:08]} Ne4 {[%emt 0:00:07]} 22. Bg2 {[%emt 0:00:08]} Nc5 {[%emt 0:00:01]} 23. Nc3 {[%emt 0:00:06]} Ne6 {[%emt 0:00:17]} 24. Nb5 {[%emt 0:00:05]} Be5 {[%emt 0:00:07]} 25. Kh1 {[%emt 0:00:19]} Nd4 {[%emt 0:00:07]} 26. Nxd4 {[%emt 0:00:03]} Bxd4 {[%emt 0:00:01]} 27. Bd5 {[%emt 0:00:15]} Re5 {[%emt 0:00:03]} 28. Kg2 {[%emt 0:00:02]} Rbe8 {[%emt 0:00:02]} 29. Rbd1 {[%emt 0:00:05]} Re2 {[%emt 0:00:06]} 30. Rd2 {[%emt 0:00:02]} Re1 31. Rxe1 {[%emt 0:00:02]} Rxe1 {[%emt 0:00:10]} 32. Re2 {[%emt 0:00:05]} Rxe2 {[%emt 0:00:07]} 33. Qxe2 {[%emt 0:00:02]} Qf6 {[%emt 0:00:00]} 34. Qf3 {[%emt 0:00:12]} Qe7 {[%emt 0:00:05]} 35. Qf4 {[%emt 0:00:10]} Bc5 {[%emt 0:00:03]} 36. Kf3 {[%emt 0:00:07]} Kg7 {[%emt 0:00:01]} 37. Kg2 {[%emt 0:00:05]} h5 {[%emt 0:00:02]} 38. Qe4 {[%emt 0:00:03]} Qf6 {[%emt 0:00:02]} 39. Qf3 {[%emt 0:00:03]} Qe7 {[%emt 0:00:01]} 40. Qc3+ {[%emt 0:00:01]} Qf6 {[%emt 0:00:05]} 41. Qxf6+ {[%emt 0:00:03]} Kxf6 {[%emt 0:00:01]} 42. f4 {[%emt 0:00:02]} Ke7 {[%emt 0:00:06]} 43. Kf3 {[%emt 0:00:02]} f6 {[%emt 0:00:01]} 44. Be4 {[%emt 0:00:02]} g5 {[%emt 0:00:01]} 45. fxg5 {[%emt 0:00:04]} fxg5 {[%emt 0:00:01]} 46. Bg6 {[%emt 0:00:02]} h4 {[%emt 0:00:00]} 47. gxh4 {[%emt 0:00:02]} gxh4 {[%emt 0:00:01]} 48. Bf5 {[%emt 0:00:02]} Kd6 {[%emt 0:00:04]} 49. Ke4 {[%emt 0:00:02]} Ba3 {[%emt 0:00:03]} 50. Kd4 {[%emt 0:00:02]} Bb2+ {[%emt 0:00:01]} 51. Ke4 {Ke5+} 1/2-1/2

[Event "RUS-ch Women Blitz 2019"]
[Site "Sochi"]
[Date "2019.10.17"]
[Round "11.3"]
[White "Tomilova, Elena"]
[Black "Belenkaya, Dina"]
[Result "1/2-1/2"]
[ECO "A09"]
[WhiteElo "2345"]
[BlackElo "2300"]
[Annotator "NA"]
[PlyCount "45"]
[EventDate "2019.10.17"]
[EventType "swiss"]
[EventCountry "RUS"]
[SourceTitle "playchess.com"]
[Source "ChessBase"]
[SourceQuality "1"]
[TimeControl "180+2"]

1. Nf3 {[%emt 0:00:00]} d5 {[%emt 0:00:00]} 2. c4 {[%emt 0:00:02]} d4 {[%emt 0:00:00]} 3. g3 {[%emt 0:00:02]} Nc6 {[%emt 0:00:04]} 4. Bg2 {[%emt 0:00:03]} e5 {[%emt 0:00:01]} 5. d3 {[%emt 0:00:03]} Bb4+ {[%emt 0:00:06]} 6. Nbd2 {[%emt 0:00:05]} Nf6 {[%emt 0:00:02]} 7. O-O {[%emt 0:00:03]} a5 {[%emt 0:00:02]} 8. a3 {[%emt 0:00:04]} Be7 {[%emt 0:00:04]} 9. Rb1 {[%emt 0:00:12]} O-O {[%emt 0:00:05]} 10. b4 {[%emt 0:00:08]} axb4 {[%emt 0:00:23]} 11. axb4 {[%emt 0:00:01]} Nxb4 {[%emt 0:00:15]} 12. Nxe5 {[%emt 0:00:03]} Re8 {[%emt 0:00:46]} 13. Nb3 {[%emt 0:00:12]} Bf8 {[%emt 0:00:21]} 14. Nf3 {[%emt 0:00:02]} Nc6 {[%emt 0:00:08]} 15. Bb2 {[%emt 0:00:10]} Ra2 {[%emt 0:00:11]} 16. Re1 {[%emt 0:00:18]} Bg4 {[%emt 0:00:04]} 17. h3 {[%emt 0:00:03]} Bxf3 {[%emt 0:00:05]} 18. exf3 {[%emt 0:00:13]} Rxe1+ {[%emt 0:00:14]} 19. Qxe1 {[%emt 0:00:00]} Bb4 {[%emt 0:00:01]} 20. Qc1 {[%emt 0:00:12]} Ne5 {[%emt 0:00:11]} 21. Qd1 {[%emt 0:00:01]} c5 {[%emt 0:00:03]} 22. f4 {[%emt 0:00:02]} Nc6 {[%emt 0:00:01]} 23. Nd2 {[%emt 0:00:23]} 1/2-1/2

[Event "RUS-ch Women Blitz 2019"]
[Site "Sochi"]
[Date "2019.10.17"]
[Round "11.4"]
[White "Kovanova, Baira"]
[Black "Ambartsumova, Karina"]
[Result "1-0"]
[ECO "A48"]
[WhiteElo "2344"]
[BlackElo "2341"]
[Annotator "NA"]
[PlyCount "113"]
[EventDate "2019.10.17"]
[EventType "swiss"]
[EventCountry "RUS"]
[SourceTitle "playchess.com"]
[Source "ChessBase"]
[SourceQuality "1"]
[TimeControl "180+2"]

1. d4 {[%emt 0:00:00]} Nf6 {[%emt 0:00:03]} 2. Nf3 {[%emt 0:00:01]} g6 {[%emt 0:00:01]} 3. Bf4 {[%emt 0:00:01]} Bg7 {[%emt 0:00:02]} 4. c4 {[%emt 0:00:01]} O-O {[%emt 0:00:05]} 5. e3 {[%emt 0:00:01]} d6 {[%emt 0:00:02]} 6. h3 {[%emt 0:00:03]} Nbd7 {[%emt 0:00:16]} 7. Be2 {[%emt 0:00:02]} Qe8 {[%emt 0:00:37]} 8. O-O {[%emt 0:00:07]} e5 {[%emt 0:00:01]} 9. Bh2 {[%emt 0:00:08]} Qe7 {[%emt 0:00:16]} 10. Nc3 {[%emt 0:00:01]} b6 {[%emt 0:00:11]} 11. Rc1 {[%emt 0:00:09]} Bb7 {[%emt 0:00:01]} 12. b4 {[%emt 0:00:03]} a5 {[%emt 0:00:06]} 13. a3 {[%emt 0:00:01]} Rfc8 {[%emt 0:00:21]} 14. Re1 {[%emt 0:00:04]} axb4 {[%emt 0:00:03]} 15. axb4 {[%emt 0:00:01]} Ra3 {[%emt 0:00:21]} 16. Nb5 {[%emt 0:00:22]} Raa8 {[%emt 0:00:01]} 17. c5 {[%emt 0:00:08]} bxc5 {[%emt 0:00:05]} 18. bxc5 {[%emt 0:00:02]} Bxf3 {[%emt 0:00:46]} 19. Bxf3 {[%emt 0:00:05]} Ne8 {[%emt 0:00:11]} 20. Bxa8 {[%emt 0:00:04]} Rxa8 {[%emt 0:00:00]} 21. Qf3 {[%emt 0:00:13]} Rb8 {[%emt 0:00:03]} 22. Qc6 {[%emt 0:00:16]} Nf8 {[%emt 0:00:04]} 23. cxd6 {[%emt 0:00:20]} cxd6 {[%emt 0:00:01]} 24. dxe5 {[%emt 0:00:26]} dxe5 {[%emt 0:00:01]} 25. Ra1 {[%emt 0:00:02]} Ne6 {[%emt 0:00:04]} 26. Red1 {[%emt 0:00:09]} Qb4 {[%emt 0:00:02]} 27. Nd6 {[%emt 0:00:06]} Nxd6 {[%emt 0:00:05]} 28. Qxd6 {[%emt 0:00:01]} Qb5 {[%emt 0:00:02]} 29. Ra7 {[%emt 0:00:13]} Rd8 {[%emt 0:00:03]} 30. Rd7 {[%emt 0:00:02]} Rxd7 {[%emt 0:00:01]} 31. Qxd7 {[%emt 0:00:02]} Qb3 {[%emt 0:00:02]} 32. Qd5 {[%emt 0:00:05]} Qb2 {[%emt 0:00:00]} 33. Bg3 {[%emt 0:00:04]} Bf6 {[%emt 0:00:01]} 34. Qd2 {[%emt 0:00:10]} Qb5 {[%emt 0:00:01]} 35. Qd3 {[%emt 0:00:01]} Qb2 {[%emt 0:00:01]} 36. Rb1 {[%emt 0:00:01]} Qa2 {[%emt 0:00:01]} 37. Qb5 {[%emt 0:00:05]} Qc2 {[%emt 0:00:04]} 38. Qb2 {[%emt 0:00:05]} Qc5 {[%emt 0:00:02]} 39. Rc1 {[%emt 0:00:02]} Qa5 {[%emt 0:00:00]} 40. Qc3 {[%emt 0:00:01]} Qb5 {[%emt 0:00:02]} 41. Rd1 {[%emt 0:00:05]} Kg7 {[%emt 0:00:01]} 42. h4 {[%emt 0:00:01]} h5 {[%emt 0:00:01]} 43. Qd3 {[%emt 0:00:06]} Qa4 {[%emt 0:00:02]} 44. Qd5 {[%emt 0:00:03]} Qc2 {[%emt 0:00:01]} 45. Bxe5 {[%emt 0:00:09]} Qa4 {[%emt 0:00:06]} 46. Bxf6+ {[%emt 0:00:03]} Kxf6 {[%emt 0:00:01]} 47. g3 {[%emt 0:00:01]} Kg7 {[%emt 0:00:01]} 48. Kg2 {[%emt 0:00:02]} Qg4 {[%emt 0:00:02]} 49. Qf3 {[%emt 0:00:01]} Qa4 {[%emt 0:00:01]} 50. Rd6 {[%emt 0:00:02]} Qb5 {[%emt 0:00:02]} 51. Rd5 {[%emt 0:00:02]} Qc6 {[%emt 0:00:02]} 52. Rd1 {[%emt 0:00:05]} Qa4 {[%emt 0:00:01]} 53. Rb1 {[%emt 0:00:01]} Qc2 {[%emt 0:00:04]} 54. Rb7 {[%emt 0:00:02]} Nd8 {[%emt 0:00:01]} 55. Rd7 {[%emt 0:00:01]} Qc8 {[%emt 0:00:01]} 56. Qd5 {[%emt 0:00:03]} Ne6 {[%emt 0:00:05]} 57. Qxe6 {[%emt 0:00:02]} 1-0